fUST/lending_fUST_20251125
["ID","MTS","AMOUNT","RATE_DAILY","PERIOD"]
[394891756,1764081877067,2118.0,0.00021596,120]
[394891757,1764081967423,837.0,0.00021446,120]
[394891758,1764082086141,159.6728257,4.769e-05,2]
[394891798,1764082231687,-352.65655969,4.797e-05,2]
[394891799,1764082231697,-300.0,4.799e-05,2]
[394891800,1764082231707,-15.82027086,4.8e-05,2]
[394891849,1764082239989,-274.27098995,4.8e-05,2]
[394891850,1764082239999,-3358.85734411,4.8e-05,2]
[394891851,1764082240235,-0.00400929,4.8e-05,2]
[394891982,1764082246227,-502.6338549,4.8e-05,2]
[394891984,1764082246239,-752.8947496,4.8e-05,2]
[394891987,1764082246260,-501.1915657,4.8e-05,2]
[394892195,1764082612388,-9589.94852743,4.7e-05,2]
[394892196,1764082613840,-630.18495547,4.7e-05,2]
[394892197,1764082618782,-10000.01,4.7e-05,2]
[394892198,1764082626092,350.60723388,4.653e-05,2]
[394892199,1764082642225,5504.65344486,4.653e-05,2]
[394892200,1764082691941,-300.0,4.699e-05,2]
[394892201,1764082691993,-19339.34516757,4.7e-05,2]
[394892202,1764082704755,-20000.0,4.7e-05,2]
[394892203,1764082730553,4144.74932126,3.993e-05,2]
[394892204,1764082730576,4510.02571214,3.993e-05,2]
[394892205,1764082747436,-300.0,4.699e-05,2]
[394892206,1764082748014,-244.50719396,4.7e-05,2]
[394892207,1764082750335,-220.95441046,4.7e-05,2]
[394892208,1764082752606,-231.47465786,4.7e-05,2]
[394892209,1764082755239,-159.59747866,4.7e-05,2]
[394892210,1764082758563,-223.56036777,4.7e-05,2]
[394892211,1764082759371,856.53149856,4.653e-05,2]
[394892212,1764082761156,-331.86900224,4.7e-05,2]
[394892213,1764082762709,-156.81564143,4.7e-05,2]
[394892214,1764082764694,-200.0,4.7e-05,2]
[394892215,1764082766089,-259.86894921,4.7e-05,2]
[394892216,1764082768741,-240.80759881,4.7e-05,2]
[394892217,1764082770259,-176.39025782,4.7e-05,2]
[394892218,1764082773239,-255.49950257,4.7e-05,2]
[394892220,1764082775325,-248.33954225,4.7e-05,2]
[394892221,1764082777901,-277.36409766,4.7e-05,2]
[394892222,1764082779690,-155.22554168,4.7e-05,2]
[394892223,1764082780956,-383.89043166,4.7e-05,2]
[394892224,1764082782563,2525.74050144,4.653e-05,2]
[394892225,1764082785038,-163.44,4.7e-05,2]
[394892226,1764082786915,-156.07036398,4.7e-05,2]
[394892227,1764082788425,-300.0,4.7e-05,2]
[394892228,1764082791573,-206.68240134,4.7e-05,2]
[394892229,1764082802380,300.0,4.699e-05,2]
[394892230,1764082804477,1200.0,4.699e-05,2]
[394892231,1764082805098,1210.08319698,4.653e-05,2]
[394892232,1764082862910,300.0,4.699e-05,2]
[394892233,1764082923101,300.0,4.699e-05,2]
[394892234,1764082983376,288.0,4.699e-05,2]
[394892236,1764083108943,352.65655969,4.697e-05,2]
[394892267,1764083431954,-417.16503418,4.7e-05,2]
[394892269,1764083431966,-901.35642237,4.7e-05,2]
[394892271,1764083431977,-685.397014,4.7e-05,2]
[394892282,1764083432090,-277.18406,4.7e-05,2]
[394892670,1764083438539,-400.59033389,4.7e-05,2]
[394892675,1764083441375,-113298.525313,4.7e-05,2]
[394892676,1764083441442,-1277.32845475,4.7e-05,2]
[394892677,1764083441644,-3e-08,4.7e-05,2]
[394892678,1764083441658,-20364.32176211,4.7e-05,2]
[394892693,1764083446907,-697.71665078,4.7e-05,2]
[394892707,1764083449017,-1383.53881,4.7e-05,2]
[394892708,1764083450143,-5105.55717501,4.7e-05,2]
[394892709,1764083450155,-1822.25709309,4.7e-05,2]
[394892716,1764083467225,839.16051107,4.653e-05,2]
[394892717,1764083490369,938.11508732,4.653e-05,2]
[394892719,1764083605850,289.72264494,4.6e-05,2]
[394892720,1764083605884,10000.01,4.6e-05,2]
[394892721,1764083605920,10000.01,4.6e-05,2]
[394892722,1764083605953,10000.01,4.6e-05,2]
[394892723,1764083605985,10000.01,4.6e-05,2]
[394892724,1764083606018,10000.01,4.6e-05,2]
[394892725,1764083606049,10000.01,4.6e-05,2]
[394892726,1764083606081,10000.01,4.6e-05,2]
[394892727,1764083606113,10000.01,4.6e-05,2]
[394892728,1764083606144,10000.01,4.6e-05,2]
[394892729,1764083611653,-583.68092744,4.6e-05,2]
[394892730,1764083612358,-1942.76152748,4.6e-05,2]
[394892731,1764083614175,-10000.01,4.6e-05,2]
[394892732,1764083614313,-10000.01,4.6e-05,2]
[394892733,1764083614599,-287.37240292,4.6e-05,2]
[394892734,1764083614632,-10000.01,4.6e-05,2]
[394892735,1764083614665,-10000.01,4.6e-05,2]
[394892736,1764083614690,-10000.01,4.6e-05,2]
[394892737,1764083614805,-10000.01,4.6e-05,2]
[394892738,1764083615040,-10000.01,4.6e-05,2]
[394892739,1764083615168,-10000.01,4.6e-05,2]
[394892740,1764083615885,-307.18742721,4.6e-05,2]
[394892741,1764083619559,-386.28870249,4.6e-05,2]
[394892742,1764083621135,-325.61229961,4.6e-05,2]
[394892743,1764083621207,-10000.01,4.6e-05,2]
[394892744,1764083623506,-10000.01,4.6e-05,2]
[394892745,1764083623698,-333.27002933,4.6e-05,2]
[394892746,1764083623739,-10000.01,4.6e-05,2]
[394892747,1764083623897,-10000.01,4.6e-05,2]
[394892748,1764083624068,-10000.01,4.6e-05,2]
[394892749,1764083624202,-10000.01,4.6e-05,2]
[394892750,1764083624316,-10000.01,4.6e-05,2]
[394892751,1764083624450,-10000.01,4.6e-05,2]
[394892752,1764083626260,-297.17602716,4.6e-05,2]
[394892753,1764083626396,-10000.01,4.6e-05,2]
[394892754,1764083628182,-313.69268593,4.6e-05,2]
[394892755,1764083629525,-10000.01,4.6e-05,2]
[394892756,1764083629693,-10000.01,4.6e-05,2]
[394892757,1764083629859,-10000.01,4.6e-05,2]
[394892758,1764083630022,-10000.01,4.6e-05,2]
[394892759,1764083630198,-10000.01,4.6e-05,2]
[394892760,1764083630320,-10000.01,4.6e-05,2]
[394892761,1764083630455,-10000.01,4.6e-05,2]
[394892762,1764083631138,-192.81257279,4.6e-05,2]
[394892764,1764083656521,-209.94152059,4.554e-05,2]
[394892765,1764083659383,-153.90257288,4.554e-05,2]
[394892766,1764083672624,-240.14083146,4.554e-05,2]
[394892767,1764083677312,-426.8275268,4.554e-05,2]
[394892768,1764083680367,-157.78862659,4.554e-05,2]
[394892769,1764083682939,-240.68616737,4.554e-05,2]
[394892770,1764083685574,-198.97046827,4.554e-05,2]
[394892771,1764083687590,-340.58420811,4.554e-05,2]
[394892772,1764083691039,-402.55461258,4.554e-05,2]
[394892773,1764083694188,-381.22615863,4.554e-05,2]
[394892774,1764083698465,-257.43410524,4.554e-05,2]
[394892775,1764083701469,-292.51805573,4.554e-05,2]
[394892776,1764083706233,-188.92525109,4.554e-05,2]
[394892777,1764083708241,-269.59759796,4.554e-05,2]
[394892778,1764083710848,-375.84521079,4.554e-05,2]
[394892779,1764083712747,-218.49211706,4.554e-05,2]
[394892780,1764083715452,-222.35879455,4.554e-05,2]
[394892781,1764083718656,-291.64286549,4.554e-05,2]
[394892782,1764083720170,-189.57158706,4.554e-05,2]
[394892783,1764083722146,-262.60806453,4.554e-05,2]
[394892784,1764083724307,-264.7672137,4.554e-05,2]
[394892785,1764083726510,-203.87446412,4.554e-05,2]
[394892786,1764083728542,-240.94883854,4.554e-05,2]
[394892787,1764083730420,-287.63592248,4.554e-05,2]
[394892788,1764083733802,-520.6625333,4.554e-05,2]
[394892789,1764083736293,-154.43945472,4.554e-05,2]
[394892790,1764083739361,-362.05467552,4.554e-05,2]
[394892791,1764083742230,-298.82720458,4.554e-05,2]
[394892792,1764083744277,-246.30537198,4.554e-05,2]
[394892793,1764083746355,-159.01099713,4.554e-05,2]
[394892794,1764083749127,-203.89487823,4.554e-05,2]
[394892795,1764083750948,-238.11215837,4.554e-05,2]
[394892796,1764083753571,-174.61204991,4.554e-05,2]
[394892797,1764083758521,-332.91110399,4.554e-05,2]
[394892798,1764083761002,-357.98197911,4.554e-05,2]
[394892799,1764083764679,-228.26069778,4.554e-05,2]
[394892800,1764083767230,-308.22991976,4.554e-05,2]
[394892801,1764083769621,-171.70734668,4.554e-05,2]
[394892802,1764083772660,-86.59463408,4.554e-05,2]
[394892803,1764083772683,-92.24690444,4.573e-05,2]
[394892804,1764083775284,-240.46221122,4.573e-05,2]
[394892805,1764083779932,-167.29088434,4.573e-05,2]
[394892806,1764083779957,-4.93465264,4.573e-05,2]
[394892807,1764083782204,-263.00907554,4.573e-05,2]
[394892808,1764083784717,-205.82565051,4.573e-05,2]
[394892809,1764083788327,-26.23062131,4.573e-05,2]
[394892810,1764083788352,-445.26722533,4.573e-05,2]
[394892811,1764083793468,-54.73277467,4.573e-05,2]
[394892812,1764083793493,-117.39137138,4.573e-05,2]
[394892813,1764083797219,-193.71158205,4.573e-05,2]
[394892814,1764083797243,-143.27600024,4.573e-05,2]
[394892815,1764083797310,219.95325124,4.5e-05,2]
[394892816,1764083799841,-196.38590127,4.573e-05,2]
[394892817,1764083801424,-160.33809849,4.573e-05,2]
[394892818,1764083801447,-111.89160197,4.573e-05,2]
[394892819,1764083802885,-161.87101926,4.573e-05,2]
[394892820,1764083805968,-226.23737877,4.573e-05,2]
[394892821,1764083805999,-32.71737928,4.573e-05,2]
[394892822,1764083807882,-297.15110695,4.573e-05,2]
[394892823,1764083810033,-170.13151377,4.573e-05,2]
[394892824,1764083810058,-86.41927978,4.573e-05,2]
[394892825,1764083812993,-195.43074216,4.573e-05,2]
[394892826,1764083813016,-90.07459822,4.573e-05,2]
[394892827,1764083815778,-166.62506029,4.573e-05,2]
[394892828,1764083817203,-174.04848096,4.573e-05,2]
[394892829,1764083819775,-69.25186053,4.573e-05,2]
[394892830,1764083819798,-231.74669824,4.573e-05,2]
[394892831,1764083824052,-220.49547666,4.572e-05,2]
[394892832,1764083826000,-79.50452334,4.572e-05,2]
[394892833,1764083826023,-165.77318296,4.573e-05,2]
[394892834,1764083827547,-147.51810288,4.573e-05,2]
[394892835,1764083827575,-152.48189712,4.573e-05,2]
[394892836,1764083830994,-268.83278768,4.573e-05,2]
[394892837,1764083832464,-78.6853152,4.573e-05,2]
[394892838,1764083832486,-122.40003186,4.573e-05,2]
[394892839,1764083833852,-208.11420655,4.573e-05,2]
[394892840,1764083838083,-169.48576159,4.573e-05,2]
[394892841,1764083838107,-86.0130708,4.573e-05,2]
[394892842,1764083841049,-151.51972269,4.573e-05,2]
[394892843,1764083843932,-248.73214471,4.573e-05,2]
[394892844,1764083846120,-13.7350618,4.573e-05,2]
[394892845,1764083846144,-375.75756054,4.573e-05,2]
[394892846,1764083847709,-124.24243946,4.573e-05,2]
[394892847,1764083847734,-90.69299727,4.573e-05,2]
[394892848,1764083850339,-262.69816767,4.573e-05,2]
[394892849,1764083852792,-132.43016025,4.573e-05,2]
[394892850,1764083852815,-93.70129617,4.573e-05,2]
[394892851,1764083854800,-205.51768466,4.573e-05,2]
[394892852,1764083854824,-94.48231534,4.573e-05,2]
[394892853,1764083857341,-312.94087715,4.573e-05,2]
[394892854,1764083859591,-196.85436886,4.527e-05,2]
[394892855,1764083860877,-151.3794719,4.527e-05,2]
[394892856,1764083862613,-151.59932902,4.527e-05,2]
[394892857,1764083865419,767.62453069,4.482e-05,2]
[394892858,1764083866206,-155.73526175,4.527e-05,2]
[394892859,1764083867653,-187.05912285,4.527e-05,2]
[394892860,1764083871157,-241.37002,4.527e-05,2]
[394892861,1764083872748,-31.86079707,4.527e-05,2]
[394892862,1764083872768,-92.57680751,4.573e-05,2]
[394892863,1764083872789,-215.92605713,4.573e-05,2]
[394892864,1764083876256,-284.07394287,4.573e-05,2]
[394892865,1764083876281,-140.49913442,4.573e-05,2]
[394892866,1764083878231,-271.82906116,4.573e-05,2]
[394892867,1764083880301,-87.67180442,4.573e-05,2]
[394892868,1764083880328,-202.2851416,4.586e-05,2]
[394892869,1764083888849,359.50086558,4.482e-05,2]
[394892870,1764083889437,-316.8500108,4.527e-05,2]
[394892871,1764084016570,-42.65085478,4.527e-05,2]
[394892872,1764084016797,-139.00235792,4.573e-05,2]
[394892873,1764084018517,-171.85336469,4.573e-05,2]
[394892874,1764084019975,-189.14427739,4.573e-05,2]
[394892875,1764084019998,-20.64718435,4.573e-05,2]
[394892876,1764084021511,-170.59340552,4.573e-05,2]
[394892877,1764084022933,-347.89351051,4.527e-05,2]
[394892878,1764084025404,-318.3467873,4.527e-05,2]
[394892879,1764084027452,-155.86225045,4.527e-05,2]
[394892880,1764084028977,-247.11891598,4.527e-05,2]
[394892881,1764084033244,-248.31840874,4.527e-05,2]
[394892882,1764084037675,663.63067785,4.482e-05,2]
[394892883,1764084037869,-214.39293793,4.527e-05,2]
[394892884,1764084039905,-206.93512498,4.527e-05,2]
[394892885,1764084042142,-242.30261494,4.527e-05,2]
[394892886,1764084042166,-35.54559558,4.573e-05,2]
[394892887,1764084044116,-252.83679458,4.573e-05,2]
[394892888,1764084046903,-286.96051857,4.527e-05,2]
[394892889,1764084049892,-246.21203509,4.527e-05,2]
[394892890,1764084051872,-217.43113029,4.527e-05,2]
[394892891,1764084053431,-209.04826266,4.527e-05,2]
[394892892,1764084054043,261.99508066,4.482e-05,2]
[394892893,1764084055386,-227.84698348,4.527e-05,2]
[394892894,1764084056844,-221.4553788,4.527e-05,2]
[394892895,1764084056868,-20.37701997,4.573e-05,2]
[394892896,1764084056891,-61.92023547,4.573e-05,2]
[394892897,1764084059317,-216.30933243,4.573e-05,2]
[394892898,1764084059340,-158.30356663,4.573e-05,2]
[394892899,1764084059364,-68.39155129,4.573e-05,2]
[394892900,1764084061840,-320.89045173,4.573e-05,2]
[394892901,1764084065034,-181.79943863,4.527e-05,2]
[394892902,1764084067230,-249.26092958,4.527e-05,2]
[394892903,1764084068752,-216.95369689,4.527e-05,2]
[394892904,1764084069995,539.79731315,4.482e-05,2]
[394892905,1764084070468,-227.12932824,4.527e-05,2]
[394892906,1764084073426,-175.26723728,4.527e-05,2]
[394892907,1764084074758,-285.53492649,4.527e-05,2]
[394892909,1764084077761,459.66691289,4.482e-05,2]
[394892910,1764084079880,-185.9360197,4.527e-05,2]
[394892911,1764084081823,-270.45423746,4.527e-05,2]
[394892912,1764084159126,1064.0,0.0001212,6]
[394892913,1764084182190,-157.76911984,4.527e-05,2]
[394892914,1764084182215,-234.4819738,4.55e-05,2]
[394892916,1764084256045,1000.0,9.11e-05,3]
[394892918,1764084332713,-329.8126946,4.543e-05,2]
[394892919,1764084332740,-55.96606647,4.55e-05,2]
[394892920,1764084391540,-1.94663254,4.55e-05,2]
[394892921,1764084391566,-188.39632274,4.571e-05,2]
[394892928,1764084622408,10000.01,4.5e-05,2]
[394892929,1764084622439,10000.01,4.5e-05,2]
[394892930,1764084622643,869999.98,4.5e-05,2]
[394892960,1764084632074,-730.96635047,4.571e-05,2]
[394892995,1764084632532,300.0,4.48e-05,2]
[394893005,1764084638048,-469.03364953,4.571e-05,2]
[394893006,1764084638060,-300.0,4.572e-05,2]
[394893007,1764084638073,-159.94980418,4.572e-05,2]
[394893008,1764084638089,-140.05019582,4.572e-05,2]
[394893009,1764084638102,-300.0,4.572e-05,2]
[394893010,1764084638114,-300.0,4.572e-05,2]
[394893011,1764084638126,-452.0,4.572e-05,2]
[394893012,1764084638138,-500.0,4.573e-05,2]
[394893013,1764084638151,-11.40066411,4.573e-05,2]
[394893014,1764084638175,-488.59933589,4.573e-05,2]
[394893015,1764084638188,-500.0,4.573e-05,2]
[394893016,1764084638200,-454.13615545,4.573e-05,2]
[394893017,1764084638216,-45.86384455,4.573e-05,2]
[394893018,1764084638228,-389.13615545,4.573e-05,2]
[394893019,1764084638255,-110.86384455,4.573e-05,2]
[394893020,1764084638267,-500.0,4.573e-05,2]
[394893021,1764084638280,-500.0,4.573e-05,2]
[394893022,1764084638293,-500.0,4.573e-05,2]
[394893023,1764084638306,-464.2951198,4.573e-05,2]
[394893024,1764084638318,-97.83657821,4.573e-05,2]
[394893025,1764084638334,-402.16342179,4.573e-05,2]
[394893026,1764084638346,-500.0,4.573e-05,2]
[394893027,1764084638359,-386.60464096,4.573e-05,2]
[394893028,1764084638371,-485.51459549,4.573e-05,2]
[394893029,1764084638384,-500.0,4.573e-05,2]
[394893030,1764084638396,-500.0,4.573e-05,2]
[394893031,1764084638410,-220.0,4.9e-05,2]
[394893032,1764084638422,-151.0,5e-05,2]
[394893033,1764084638436,-151.0,5e-05,2]
[394893034,1764084638449,-198.19237479,5e-05,2]
[394893035,1764084638463,-198.54630491,5e-05,2]
[394893036,1764084638475,-151.0,5e-05,2]
[394893037,1764084638487,-253.1710342,5e-05,2]
[394893038,1764084638499,-151.0,5e-05,2]
[394893039,1764084638512,-500.0,5e-05,2]
[394893040,1764084638525,-151.0,5e-05,2]
[394893041,1764084638536,-151.0,5e-05,2]
[394893042,1764084638550,-200.83845501,5e-05,2]
[394893043,1764084638562,-777.42903195,5e-05,2]
[394893065,1764084640495,-310.27,5e-05,2]
[394893066,1764084641801,-3e-08,5e-05,2]
[394893067,1764084641815,-528.89051107,5e-05,2]
[394893108,1764084646705,-341.98255862,5e-05,2]
[394893109,1764084646714,-500.0,5e-05,2]
[394893110,1764084646723,-525.87545973,5e-05,2]
[394893111,1764084646733,-500.0,5e-05,2]
[394893112,1764084646742,-500.0,5e-05,2]
[394893113,1764084646751,-500.0,5e-05,2]
[394893114,1764084646761,-500.0,5e-05,2]
[394893115,1764084646770,-500.0,5e-05,2]
[394893116,1764084646779,-500.0,5e-05,2]
[394893117,1764084646789,-500.0,5e-05,2]
[394893118,1764084646798,-500.0,5e-05,2]
[394893119,1764084646808,-500.0,5e-05,2]
[394893120,1764084646820,-500.0,5e-05,2]
[394893121,1764084646830,-500.0,5e-05,2]
[394893122,1764084646839,-500.0,5e-05,2]
[394893123,1764084646849,-500.0,5e-05,2]
[394893124,1764084646858,-500.0,5e-05,2]
[394893125,1764084646867,-500.0,5e-05,2]
[394893126,1764084646876,-500.0,5e-05,2]
[394893127,1764084646885,-500.0,5e-05,2]
[394893128,1764084646896,-500.0,5e-05,2]
[394893129,1764084646906,-266.94932447,5e-05,2]
[394893130,1764084646915,-500.0,5e-05,2]
[394893131,1764084646925,-500.0,5e-05,2]
[394893132,1764084646934,-500.0,5e-05,2]
[394893133,1764084646943,-500.0,5e-05,2]
[394893134,1764084646952,-598.77776154,5e-05,2]
[394893135,1764084646962,-500.0,5e-05,2]
[394893136,1764084646971,-500.0,5e-05,2]
[394893137,1764084646982,-500.0,5e-05,2]
[394893138,1764084646991,-500.0,5e-05,2]
[394893139,1764084647001,-1282.0,5.028e-05,2]
[394893140,1764084647010,-300.0,5.029e-05,2]
[394893141,1764084647019,-420.0,5.029e-05,2]
[394893142,1764084647028,-7.3994807,5.088e-05,2]
[394893143,1764084647047,-322.4132139,5.088e-05,2]
[394893144,1764084647056,-456.36591766,5.099e-05,2]
[394893145,1764084647067,-143.63408234,5.099e-05,2]
[394893146,1764084647077,-500.0,5.121e-05,2]
[394893147,1764084647086,-977.44931791,5.121e-05,2]
[394893169,1764084792105,166660.13626172,4.5e-05,2]
[394893171,1764084807221,-824.01231269,4.5e-05,2]
[394893172,1764084809414,-223.84180775,4.5e-05,2]
[394893173,1764084811886,-168.28269055,4.5e-05,2]
[394893174,1764084813871,-288.19308282,4.5e-05,2]
[394893175,1764084815767,-491.64796342,4.5e-05,2]
[394893176,1764084819504,-162.35555728,4.455e-05,2]
[394893177,1764084822405,-317.19698731,4.455e-05,2]
[394893178,1764084822437,-49.18774443,4.5e-05,2]
[394893179,1764084825150,-211.80691718,4.5e-05,2]
[394893180,1764084826705,-241.20937038,4.5e-05,2]
[394893181,1764084829772,-337.64444272,4.5e-05,2]
[394893182,1764084831062,-345.38080514,4.5e-05,2]
[394893183,1764084833016,-281.1712487,4.5e-05,2]
[394893184,1764084834579,-412.5051894,4.5e-05,2]
[394893185,1764084838668,-304.61628448,4.5e-05,2]
[394893186,1764084841776,-164.45472772,4.5e-05,2]
[394893187,1764084844394,-238.77603222,4.499e-05,2]
[394893188,1764084846048,-61.22396778,4.499e-05,2]
[394893189,1764084846078,-210.27159115,4.5e-05,2]
[394893190,1764084851181,-295.85710167,4.5e-05,2]
[394893191,1764084853856,-365.34739187,4.5e-05,2]
[394893192,1764084855959,-177.90242636,4.5e-05,2]
[394893193,1764084857414,-220.55197004,4.5e-05,2]
[394893194,1764084859350,-217.25838105,4.5e-05,2]
[394893195,1764084864174,-233.58531602,4.5e-05,2]
[394893196,1764084865605,-352.61668284,4.5e-05,2]
[394893197,1764084868065,-242.06636562,4.5e-05,2]
[394893199,1764084871278,-288.73916977,4.455e-05,2]
[394893200,1764084874355,-296.67235938,4.455e-05,2]
[394893201,1764084875550,-155.57518655,4.455e-05,2]
[394893202,1764084879233,-279.86416778,4.455e-05,2]
[394893203,1764084881853,-3.96249949,4.455e-05,2]
[394893204,1764084881885,-376.92022739,4.5e-05,2]
[394893205,1764084883992,-320.19035369,4.5e-05,2]
[394893206,1764084887267,-174.24429555,4.5e-05,2]
[394893207,1764084889816,-347.57362615,4.5e-05,2]
[394893208,1764084893206,-265.32804676,4.5e-05,2]
[394893209,1764084894671,-300.0,4.5e-05,2]
[394893210,1764084898028,-261.54002788,4.5e-05,2]
[394893211,1764084899156,-161.96892812,4.5e-05,2]
[394893212,1764084900740,-301.89485399,4.5e-05,2]
[394893213,1764084902202,-300.0,4.499e-05,2]
[394893214,1764084902237,-181.83144987,4.5e-05,2]
[394893215,1764084905566,-297.09402483,4.499e-05,2]
[394893216,1764084906966,-2.90597517,4.499e-05,2]
[394893217,1764084906993,-229.21548327,4.499e-05,2]
[394893218,1764084909201,-206.68240134,4.499e-05,2]
[394893219,1764084927131,-448.40115235,4.409e-05,2]
[394893220,1764084929792,-295.32964773,4.409e-05,2]
[394893221,1764084931838,-164.87319919,4.409e-05,2]
[394893222,1764084933683,-155.49811612,4.409e-05,2]
[394893223,1764084933710,-153.43708031,4.454e-05,2]
[394893224,1764084936721,-277.34400081,4.454e-05,2]
[394893225,1764084938727,-206.68240134,4.454e-05,2]
[394893228,1764085141481,248.83967174,4.235e-05,2]
[394893229,1764085163762,200.84445251,4.235e-05,2]
[394893232,1764085211803,250.0,9.11e-05,3]
[394893233,1764085212460,250.0,9.11e-05,3]
[394893234,1764085213079,250.0,9.11e-05,3]
[394893235,1764085213703,250.0,9.11e-05,3]
[394893236,1764085214341,250.0,9.11e-05,3]
[394893237,1764085215021,250.0,9.11e-05,3]
[394893238,1764085215613,250.0,9.11e-05,3]
[394893239,1764085216377,250.0,9.11e-05,3]
[394893240,1764085216592,250.0,9.11e-05,3]
[394893241,1764085217196,250.0,9.11e-05,3]
[394893242,1764085217804,250.0,9.11e-05,3]
[394893243,1764085218406,250.0,9.11e-05,3]
[394893244,1764085219668,250.0,9.11e-05,3]
[394893245,1764085220306,250.0,9.11e-05,3]
[394893246,1764085221103,250.0,9.11e-05,3]
[394893247,1764085221558,250.0,9.11e-05,3]
[394893248,1764085222181,250.0,9.11e-05,3]
[394893249,1764085222837,250.0,9.11e-05,3]
[394893250,1764085223456,250.0,9.11e-05,3]
[394893251,1764085224248,250.0,9.11e-05,3]
[394893252,1764085224863,250.0,9.11e-05,3]
[394893253,1764085225311,-226.99311996,4.278e-05,2]
[394893254,1764085225471,250.0,9.11e-05,3]
[394893255,1764085227657,-21.84655178,4.278e-05,2]
[394893256,1764085227683,-248.83967174,4.321e-05,2]
[394893257,1764085227708,-261.12502843,4.343e-05,2]
[394893258,1764085230280,-50.66065254,4.343e-05,2]
[394893259,1764085230306,-122.60236802,4.472e-05,2]
[394893260,1764085231794,-332.65921408,4.472e-05,2]
[394893261,1764085233891,-171.90376807,4.472e-05,2]
[394893262,1764085238113,-246.25225795,4.427e-05,2]
[394893263,1764085240086,-195.54614795,4.427e-05,2]
[394893264,1764085243283,-248.15210994,4.427e-05,2]
[394893265,1764085244845,-54.78790206,4.427e-05,2]
[394893266,1764085244869,-245.21209794,4.472e-05,2]
[394893267,1764085247940,-202.54324198,4.472e-05,2]
[394893268,1764085249384,-125.07930991,4.472e-05,2]
[394893269,1764085249410,-92.05354454,4.472e-05,2]
[394893270,1764085250807,-114.6288568,4.472e-05,2]
[394893271,1764085250830,-47.46695967,4.473e-05,2]
[394893272,1764085253803,-248.97491769,4.473e-05,2]
[394893273,1764085255268,-203.55812264,4.473e-05,2]
[394893274,1764085255291,-121.26736651,4.473e-05,2]
[394893275,1764085258221,-223.04978818,4.473e-05,2]
[394893276,1764085258708,2878.73263349,4.428e-05,2]
[394893277,1764085259755,-155.68284531,4.473e-05,2]
[394893278,1764085259783,-39.29773329,4.473e-05,2]
[394893279,1764085261883,-272.73682858,4.473e-05,2]
[394893280,1764085263352,-187.96543813,4.473e-05,2]
[394893281,1764085263378,-110.04906616,4.473e-05,2]
[394893282,1764085264812,-330.83222459,4.473e-05,2]
[394893283,1764085266426,274.78954935,4.428e-05,2]
[394893285,1764085266861,-59.11870925,4.473e-05,2]
[394893286,1764085266885,-167.17568327,4.473e-05,2]
[394893287,1764085269019,-252.33543127,4.473e-05,2]
[394893288,1764085270778,-80.48888546,4.473e-05,2]
[394893289,1764085270802,-320.78017685,4.473e-05,2]
[394893290,1764085273154,-179.21982315,4.473e-05,2]
[394893291,1764085273180,-120.78017685,4.473e-05,2]
[394893292,1764085276486,-196.39386214,4.473e-05,2]
[394893293,1764085277765,-182.82596101,4.473e-05,2]
[394893294,1764085277789,-59.0184695,4.496e-05,2]
[394893295,1764085279376,-240.9815305,4.496e-05,2]
[394893296,1764085279399,-59.0184695,4.497e-05,2]
[394893297,1764085282601,240.9815305,4.451e-05,2]
[394893298,1764085305891,1995.10413631,4.428e-05,2]
[394893299,1764085328182,1995.10413631,4.428e-05,2]
[394893300,1764085350495,1995.10413631,4.428e-05,2]
[394893301,1764085373373,620.19387773,4.428e-05,2]
[394893302,1764085373400,1374.91025858,4.428e-05,2]
[394893303,1764085395715,1995.10413631,4.428e-05,2]
[394893304,1764085418051,1995.10413631,4.428e-05,2]
[394893305,1764085440254,1995.10413631,4.428e-05,2]
[394893306,1764085462497,1995.10413631,4.428e-05,2]
[394893307,1764085485580,644.68319618,4.428e-05,2]
[394893308,1764085485605,1350.42094013,4.428e-05,2]
[394893310,1764085507691,305.54996735,4.44e-05,2]
[394893311,1764085530482,305.54996735,4.44e-05,2]
[394893312,1764085552828,305.54996735,4.44e-05,2]
[394893313,1764085575087,305.54996735,4.44e-05,2]
[394893314,1764085597944,305.54996735,4.44e-05,2]
[394893315,1764085620656,305.54996735,4.44e-05,2]
[394893316,1764085643235,305.54996735,4.44e-05,2]
[394893317,1764085665362,305.54996735,4.44e-05,2]
[394893318,1764085687579,305.54996735,4.44e-05,2]
[394893319,1764085709842,305.54996735,4.44e-05,2]
[394893320,1764085732075,305.54996735,4.44e-05,2]
[394893321,1764085745156,-305.54996735,4.485e-05,2]
[394893322,1764085745178,-241.0,4.498e-05,2]
[394893323,1764085745200,-284.31268448,4.498e-05,2]